bitfinex/quotes_ETHUSD_20260121
["timestamp","ask_amount","ask_price","bid_price","bid_amount"]
[1768958101006,0.002,2968.0,2967.6,2.54813714]
[1768958101189,2.55785627,2967.9,2967.4,2.54813714]
[1768958101516,0.002,2967.9,2967.5,3.08613714]
[1768958101717,3.37111475,2968.2,2967.6,2.54813714]
[1768958101718,0.002,2968.2,2967.6,2.54813714]
[1768958103035,0.002,2968.4,2967.9,2.54813714]
[1768958103191,0.002,2968.4,2968.1,2.54813714]
[1768958105192,0.002,2968.4,2968.0,3.08613714]
[1768958105602,0.002,2968.4,2968.0,3.64113714]
[1768958105826,0.002,2968.4,2968.1,2.54813714]
[1768958106240,0.002,2968.4,2968.0,0.91911371]
[1768958106241,2.55785627,2968.4,2968.0,0.91911371]
[1768958106416,2.55785627,2968.4,2968.0,1.093]
[1768958106604,0.002,2968.8,2968.2,2.54813714]
[1768958106806,0.002,2968.8,2968.4,2.54813714]
[1768958107136,0.002,2968.8,2968.6,2.54813714]
[1768958107342,0.002,2968.8,2968.7,0.538]
[1768958107702,0.002,2968.8,2968.7,3.08613714]
[1768958107902,0.002,2968.8,2968.7,1.093]
[1768958109545,0.002,2968.8,2968.7,3.64113714]
[1768958110039,0.002,2968.8,2968.1,2.54813714]
[1768958110040,2.55785627,2968.8,2968.1,2.54813714]
[1768958110218,2.8138419,2968.8,2968.0,1.093]
[1768958110413,2.8138419,2968.8,2968.0,3.64113714]
[1768958110715,2.8138419,2968.8,2968.0,4.19613714]
[1768958111113,5.92433405,2968.7,2968.0,4.19613714]
[1768958111314,0.008,2969.2,2968.7,2.54813714]
[1768958111534,0.008,2969.2,2968.8,3.08613714]
[1768958113138,0.008,2969.2,2968.8,3.64113714]
[1768958114439,3.36643662,2970.5,2968.9,2.54813714]
[1768958114627,10.2,2971.6,2968.8,4.46130954]
[1768958114628,2.55585627,2971.8,2970.4,0.1758]
[1768958114819,13.45487568,2972.9,2970.4,0.1758]
[1768958114820,2.55585627,2971.6,2970.4,0.1758]
[1768958115138,2.55585627,2971.6,2970.3,0.538]
[1768958115139,0.542,2971.7,2969.6,0.538]
[1768958115140,3.26779755,2971.0,2969.6,0.538]
[1768958115319,3.26779755,2970.8,2970.4,0.555]
[1768958116325,3.26779755,2970.8,2969.5,2.51421513]
[1768958116525,3.26779755,2970.6,2969.5,2.81943664]
[1768958116720,0.38097976,2970.7,2969.0,0.70094467]
[1768958116721,3.26779755,2970.4,2969.0,0.70094467]
[1768958116926,0.002,2969.2,2968.9,3.40435418]
[1768958117129,0.002,2969.2,2968.9,0.538]
[1768958117843,0.541,2969.8,2968.9,1.093]
[1768958118347,0.541,2969.8,2969.0,3.20415449]
[1768958118918,0.541,2969.8,2968.9,1.093]
[1768958119149,3.26779755,2970.0,2968.9,1.093]
[1768958119316,3.59457731,2969.9,2968.9,1.57821545]
[1768958120228,3.59457731,2969.9,2968.9,2.13321545]
[1768958120554,3.59457731,2969.9,2968.9,5.55514762]
[1768958120726,3.26779755,2970.2,2969.0,3.42193217]
[1768958121258,0.002,2970.4,2969.2,3.42193217]
[1768958122125,3.36552927,2971.4,2969.3,3.42193217]
[1768958122126,0.541,2971.0,2969.3,3.42193217]
[1768958122319,0.541,2971.0,2969.5,3.42193217]
[1768958122514,3.26779755,2971.1,2969.7,3.42193217]
[1768958123152,3.26779755,2971.1,2969.9,3.42193217]
[1768958123339,3.26779755,2971.1,2970.0,0.538]
[1768958124356,3.26779755,2971.1,2970.0,3.95993217]
[1768958124963,3.26779755,2971.0,2970.0,0.538]
[1768958125251,7.63373736,2970.9,2970.0,1.093]
[1768958125450,3.26779755,2970.8,2970.0,0.555]
[1768958125618,3.26779755,2970.6,2970.0,0.46596474]
[1768958126031,3.80879755,2970.6,2970.0,0.46596474]
[1768958126252,0.38087976,2970.5,2970.0,0.46596474]
[1768958126551,0.541,2970.8,2970.0,0.46596474]
[1768958126754,3.80879755,2970.8,2970.0,0.46596474]
[1768958127133,3.26779755,2970.8,2970.0,0.49963186]
[1768958127539,0.541,2971.0,2970.0,1.05463186]
[1768958127739,0.541,2971.0,2970.1,3.42193217]
[1768958127941,3.26779755,2971.1,2970.2,4.29375205]
[1768958127942,6.63356444,2971.1,2970.2,4.29375205]
[1768958128144,3.26779755,2971.1,2970.2,4.29375205]
[1768958129223,8.09948556,2972.4,2970.3,3.42193217]
[1768958129224,3.26779755,2971.5,2970.3,3.42193217]
[1768958129430,3.26779755,2971.5,2970.4,3.45559766]
[1768958129925,3.26779755,2971.8,2970.4,4.01059766]
[1768958130258,3.26779755,2972.5,2970.6,3.42193217]
[1768958130426,3.26779755,2972.5,2970.5,0.45485977]
[1768958130427,0.541,2972.1,2970.7,3.42193217]
[1768958130628,0.541,2972.1,2970.5,4.00785977]
[1768958130629,3.26779755,2972.6,2970.9,3.42193217]
[1768958130827,6.72789046,2972.7,2971.0,3.42193217]
[1768958130828,3.80879755,2972.5,2971.0,3.42193217]
[1768958131034,6.72789046,2972.7,2970.8,0.538]
[1768958131035,0.002,2972.3,2971.2,3.42193217]
[1768958131236,0.002,2972.3,2970.8,0.538]
[1768958131237,3.26979755,2972.3,2970.8,0.538]
[1768958131439,3.26779755,2972.1,2970.4,0.555]
[1768958131760,3.26779755,2971.7,2970.4,0.555]
[1768958131936,0.002,2972.3,2970.4,0.555]
[1768958131937,3.26779755,2971.5,2970.4,0.555]
[1768958132120,3.26779755,2971.3,2970.4,0.555]
[1768958132320,3.26779755,2971.3,2970.4,1.11]
[1768958132843,3.26779755,2971.1,2970.4,1.11]
[1768958134952,0.38087976,2971.4,2970.4,5.08693217]
[1768958134953,0.541,2971.2,2970.4,5.08693217]
[1768958135155,3.36520695,2971.6,2970.5,3.42193217]
[1768958135337,7.17391583,2971.7,2970.6,1.04669322]
[1768958135535,6.63291583,2971.7,2970.6,1.04669322]
[1768958135741,3.26779755,2971.7,2970.6,4.46862539]
[1768958136061,10.53884497,2971.8,2970.6,4.46862539]
[1768958136259,1.0538845,2971.7,2970.6,4.46862539]
[1768958136862,4.32168205,2971.7,2970.6,4.46862539]
[1768958137279,4.32168205,2971.7,2970.6,5.02362539]
[1768958137432,7.686774,2971.7,2970.6,5.02362539]
[1768958138259,7.686774,2971.7,2970.7,3.42193217]
[1768958138460,3.36456232,2972.2,2970.8,0.50236254]
[1768958138461,0.541,2971.8,2970.8,0.50236254]
[1768958138962,3.80879755,2971.8,2970.8,0.50236254]
[1768958139151,3.80879755,2971.8,2970.8,0.02730759]
[1768958139351,3.26779755,2971.6,2970.8,0.02730759]
[1768958139552,3.26779755,2971.6,2970.8,0.58230759]
[1768958140066,3.26779755,2971.6,2970.8,0.555]
[1768958141462,3.26779755,2971.4,2970.8,0.555]
[1768958141760,3.26779755,2971.3,2970.8,0.555]
[1768958141930,3.26779755,2971.3,2970.8,1.11]
[1768958142131,1.0539405,2971.4,2970.6,0.555]
[1768958142132,3.26779755,2971.1,2970.6,0.555]
[1768958143066,3.26779755,2971.1,2970.8,0.001]
[1768958143473,0.541,2971.2,2970.0,4.44289691]
[1768958143474,3.26779755,2970.9,2970.0,1.02096474]
[1768958143635,6.73174014,2971.0,2970.0,1.02096474]
[1768958143636,3.26779755,2970.7,2970.0,1.02096474]
[1768958143838,3.26779755,2970.7,2969.4,3.42193217]
[1768958144054,3.26779755,2970.7,2969.1,3.97793217]
[1768958144258,3.26779755,2970.7,2970.0,0.555]
[1768958144568,3.26779755,2970.7,2969.1,3.97793217]
[1768958144878,3.26779755,2970.5,2969.1,0.556]
[1768958145047,1.54095377,2970.8,2969.1,0.556]
[1768958145048,4.83043317,2970.3,2969.1,0.556]
[1768958145237,4.76533833,2970.1,2969.1,0.556]
[1768958145438,0.541,2970.2,2969.1,0.556]
[1768958145439,4.76533833,2969.9,2969.1,0.556]
[1768958145650,4.76533833,2969.7,2969.1,0.556]
[1768958145841,0.541,2969.6,2969.1,0.556]
[1768958146039,11.49934505,2970.0,2969.1,0.556]
[1768958146256,1.69093451,2969.9,2969.1,0.556]
[1768958146737,1.14993451,2969.9,2969.1,0.556]
[1768958146968,3.36629026,2970.7,2969.1,0.556]
[1768958146969,3.36629026,2970.7,2969.3,4.77869244]
[1768958146970,8.13154831,2970.7,2969.3,4.77869244]
[1768958147170,0.541,2970.6,2969.3,4.77869244]
[1768958147472,6.7330999,2970.4,2969.3,4.77869244]
[1768958147669,3.36654995,2970.4,2969.3,4.77869244]
[1768958147845,3.36654995,2970.4,2969.4,0.53166924]
[1768958148045,3.90754995,2970.4,2969.4,0.53166924]
[1768958149374,3.36648169,2970.5,2969.5,4.77869244]
[1768958149970,0.541,2970.5,2969.5,4.77869244]
[1768958150278,3.36620998,2970.7,2969.5,4.77869244]
[1768958150569,3.36620998,2970.7,2969.7,4.77869244]
[1768958150775,3.36620998,2970.7,2969.7,5.31669244]
[1768958152175,4.76533833,2970.6,2969.7,0.555]
[1768958153070,4.76533833,2970.6,2969.4,0.555]
[1768958154078,4.76533833,2970.4,2969.4,0.555]
[1768958154280,4.76533833,2970.2,2969.4,0.555]
[1768958154778,4.76533833,2970.2,2969.4,1.11]
[1768958154963,2.02746482,2970.3,2968.9,1.11]
[1768958154964,4.76533833,2970.0,2968.9,1.11]
[1768958155150,5.30633833,2969.9,2968.9,1.11]
[1768958155345,0.53063383,2969.8,2968.9,1.11]
[1768958155550,4.76533833,2969.8,2968.9,1.11]
[1768958156166,6.734687,2969.7,2968.9,1.11]
[1768958156480,6.734687,2969.7,2969.6,0.001]
[1768958156481,8.13268183,2969.7,2969.6,0.001]
[1768958156773,4.76533833,2969.6,2968.9,1.11]
[1768958156980,10.1020305,2969.7,2968.9,1.11]
[1768958156981,4.76533833,2969.4,2968.9,1.11]
[1768958157176,4.76533833,2969.4,2968.9,1.665]
[1768958157850,2.02773688,2969.5,2968.9,1.665]
[1768958158157,3.90879199,2969.4,2968.9,1.665]
[1768958158360,0.541,2969.3,2968.9,1.665]
[1768958158779,11.50092231,2969.4,2968.9,1.665]
[1768958158985,0.541,2969.2,2968.9,1.665]
[1768958159547,0.541,2969.2,2968.9,2.22]
[1768958159793,8.13313032,2969.4,2968.9,2.22]
[1768958159794,3.36779199,2969.4,2968.9,2.22]
[1768958159964,0.542,2969.2,2968.9,2.22]
[1768958160151,3.90996805,2969.2,2968.9,2.22]
[1768958161884,3.90996805,2969.2,2968.9,2.775]
[1768958162276,4.76533833,2969.1,2968.2,0.001]
[1768958162788,4.76533833,2969.1,2968.0,1.11]
[1768958163955,0.542,2969.0,2968.0,1.11]
[1768958164292,6.73650172,2968.9,2968.0,1.11]
[1768958164593,7.94088573,2968.9,2968.0,1.665]
[1768958165868,12.70622406,2968.9,2968.0,1.665]
[1768958166375,9.3379732,2968.9,2968.0,1.665]
[1768958166576,12.70622406,2968.9,2968.0,1.665]
[1768958166993,12.70622406,2968.9,2968.0,2.22]
[1768958166994,4.76533833,2968.8,2968.0,2.22]
[1768958167170,4.76533833,2968.7,2968.0,2.22]
[1768958167370,5.30733833,2968.6,2968.0,2.22]
[1768958167570,4.76533833,2968.6,2968.0,2.22]
[1768958167782,0.542,2968.5,2968.0,2.22]
[1768958167983,5.83807216,2968.5,2967.6,0.555]
[1768958168181,5.29607216,2968.5,2967.6,5.33369244]
[1768958168402,0.542,2968.4,2967.6,5.33369244]
[1768958169387,0.542,2968.4,2967.6,5.88869244]
[1768958170402,3.36870473,2968.5,2967.6,5.88869244]
[1768958170706,0.542,2968.4,2967.6,5.88869244]
[1768958171708,0.542,2968.4,2967.6,6.44369244]
[1768958172006,0.542,2968.4,2967.7,0.64436924]
[1768958172407,7.27979334,2968.4,2967.7,0.64436924]
[1768958172701,7.27979334,2968.4,2967.6,1.665]
[1768958172702,4.76533833,2968.3,2967.6,1.665]
[1768958173373,4.76533833,2968.3,2967.0,4.77869244]
[1768958173575,0.542,2968.2,2967.0,4.77869244]
[1768958173892,0.542,2968.2,2967.2,4.77869244]
[1768958174091,4.76533833,2968.3,2967.2,4.77869244]
[1768958174288,0.542,2968.1,2967.2,4.77869244]
[1768958174802,3.91119802,2968.1,2967.2,4.77869244]
[1768958175479,7.28039604,2968.1,2967.2,4.77869244]
[1768958175798,0.542,2968.0,2967.3,0.52565617]
[1768958176490,3.91131623,2968.0,2967.3,1.08065617]
[1768958176683,0.542,2968.0,2967.3,1.08065617]
[1768958178185,0.542,2968.0,2967.3,6.80365207]
[1768958178916,3.91127594,2968.0,2967.3,6.80365207]
[1768958179217,3.91127594,2968.0,2967.3,7.35865207]
[1768958179606,3.91127594,2968.0,2967.3,1.11]
[1768958179607,7.28055188,2968.0,2967.3,1.11]
[1768958180116,6.55447625,2967.9,2967.3,1.11]
[1768958180282,7.93797906,2967.9,2967.3,1.11]
[1768958181109,3.36949929,2967.8,2967.3,1.11]
[1768958181612,3.36949929,2967.8,2967.3,1.665]
[1768958182132,3.36949929,2967.8,2967.4,6.24865207]
[1768958182133,0.542,2967.8,2967.4,6.24865207]
[1768958182424,0.542,2967.8,2967.5,7.04101728]
[1768958183229,0.542,2967.9,2967.5,0.001]
[1768958183822,0.542,2967.9,2967.5,0.556]
[1768958184638,6.55447625,2968.3,2967.5,0.556]
[1768958184839,0.542,2968.2,2967.5,0.556]
[1768958185240,3.91108368,2968.2,2967.5,0.556]
[1768958186312,5.29452311,2968.2,2967.5,1.111]
[1768958186642,1.92543943,2968.2,2967.5,1.111]
[1768958186932,0.542,2968.1,2967.5,1.111]
[1768958187139,0.542,2968.1,2967.5,7.35965207]
[1768958188641,0.542,2968.0,2967.5,7.35965207]
[1768958188941,0.542,2968.0,2967.5,7.91465207]
[1768958189949,0.542,2968.0,2967.6,6.24865207]
[1768958191222,0.542,2968.2,2967.6,7.59511728]
[1768958191442,0.542,2968.3,2967.6,7.59511728]
[1768958191747,0.542,2968.4,2967.7,6.24865207]
[1768958191919,0.542,2968.4,2967.7,7.1747638]
[1768958193725,0.542,2968.4,2967.7,7.7297638]
[1768958193912,0.002,2968.2,2967.7,7.7297638]
[1768958196138,0.002,2968.2,2967.8,6.24865207]
[1768958198932,0.002,2968.2,2967.8,6.80365207]
[1768958201464,0.002,2968.2,2967.8,7.35865207]
[1768958202359,0.002,2968.7,2967.8,7.35865207]
[1768958202360,6.55447625,2969.6,2968.0,6.24865207]
[1768958202559,0.542,2969.3,2968.0,6.24865207]
[1768958203462,0.542,2969.3,2968.2,6.24865207]
[1768958203664,9.92217554,2969.4,2968.4,6.24865207]
[1768958203831,3.90969929,2969.4,2968.4,6.24865207]
[1768958204035,0.542,2969.4,2968.6,6.24865207]
[1768958205663,6.55447625,2969.6,2968.6,6.24865207]
[1768958205664,9.92197204,2969.6,2968.6,6.24865207]
[1768958205881,10.46397204,2969.6,2968.6,6.24865207]
[1768958206354,7.74613399,2969.5,2968.6,6.80365207]
[1768958207367,7.74613399,2969.4,2968.6,6.80365207]
[1768958207579,7.74613399,2969.4,2968.6,7.5518938]
[1768958207937,0.002,2969.3,2968.6,7.5518938]
[1768958208237,7.74813399,2969.3,2968.6,7.5518938]
[1768958208461,0.002,2969.3,2968.6,7.5518938]
[1768958209268,0.002,2969.3,2968.7,7.78920596]
[1768958209445,0.002,2969.3,2968.7,8.82182725]
[1768958209861,0.002,2969.3,2968.6,1.11]
[1768958209862,7.74813399,2969.3,2968.6,1.11]
[1768958210356,7.74613399,2969.1,2968.6,1.11]
[1768958211470,7.74613399,2968.9,2968.6,1.11]
[1768958211672,7.74613399,2968.9,2968.6,1.665]
[1768958211850,8.85756113,2968.9,2968.6,1.665]
[1768958212368,0.002,2969.3,2968.6,9.45420596]
[1768958213238,0.002,2969.5,2968.7,0.539]
[1768958213440,0.002,2969.5,2968.9,7.78920596]
[1768958214149,0.002,2969.5,2968.9,8.34420596]
[1768958214403,0.002,2969.5,2969.0,0.539]
[1768958214603,0.002,2969.5,2968.9,8.34420596]
[1768958214898,8.52294739,2969.5,2968.9,0.555]
[1768958216405,11.89059119,2969.5,2968.9,1.11]
[1768958218301,12.43259119,2969.5,2968.9,1.11]
[1768958218606,7.74613399,2969.4,2968.9,1.11]
[1768958218803,7.74613399,2969.4,2968.9,1.665]
[1768958219009,9.32614106,2969.4,2968.9,1.665]
[1768958219879,0.002,2969.3,2968.9,1.665]
[1768958220081,7.74813399,2969.3,2968.9,1.665]
[1768958221195,7.74813399,2969.3,2968.9,2.22]
[1768958223613,3.91160885,2969.5,2968.9,2.22]
[1768958223614,0.002,2969.5,2969.0,7.78920596]
[1768958223813,7.74613399,2970.0,2969.1,7.78920596]
[1768958224000,0.002,2970.1,2969.1,7.78920596]
[1768958224201,0.002,2970.1,2969.3,7.82059615]
[1768958226417,0.002,2970.1,2969.3,8.37559615]
[1768958226617,0.002,2970.1,2969.3,9.26705576]
[1768958228814,0.002,2970.1,2969.4,7.78920596]
[1768958231630,0.002,2970.1,2969.6,7.78920596]
[1768958231924,0.002,2969.9,2969.6,7.78920596]
[1768958233152,0.002,2969.9,2969.5,0.001]
[1768958233424,0.002,2969.9,2969.5,1.03880558]
[1768958233622,8.29013399,2969.9,2969.5,0.001]
[1768958233815,8.29013399,2969.9,2969.4,0.555]
[1768958235537,8.81762732,2969.7,2969.3,1.14139019]
[1768958235830,8.81762732,2969.7,2968.9,2.775]
[1768958236008,8.81762732,2969.5,2968.9,2.775]
[1768958236728,8.81762732,2969.5,2968.9,3.33]
[1768958236933,8.81762732,2969.4,2968.9,3.33]
[1768958237918,8.81762732,2969.4,2968.2,9.64137698]
[1768958238307,8.0439459,2969.2,2968.2,9.64137698]
[1768958238530,8.0439459,2969.0,2968.2,9.64137698]
[1768958238831,0.542,2969.1,2968.2,9.64137698]
[1768958238832,11.41219676,2968.9,2968.2,9.64137698]
[1768958239136,8.0439459,2968.8,2968.2,1.11]
[1768958239334,8.10221399,2968.6,2968.2,1.11]
[1768958241448,8.10221399,2968.6,2968.2,1.665]
[1768958242744,0.542,2968.7,2968.2,1.665]
[1768958242948,8.87501973,2968.7,2968.2,1.665]
[1768958243932,8.87501973,2968.7,2968.2,2.22]
[1768958244134,8.87501973,2968.7,2968.4,0.001]
[1768958246292,0.542,2968.7,2968.4,9.08737698]
[1768958246588,0.542,2968.7,2968.4,10.77311468]
[1768958246758,0.542,2968.7,2968.4,1.6867377]
[1768958246958,8.58600209,2968.9,2968.4,1.6867377]
[1768958246959,15.40340317,2969.6,2968.4,9.64237698]
[1768958247145,9.21048939,2969.5,2968.4,9.64237698]
[1768958248286,3.3676837,2969.4,2968.4,10.18137698]
[1768958248484,0.542,2969.3,2968.4,10.18137698]
[1768958248787,9.35962732,2969.3,2968.6,9.08637698]
[1768958249484,9.35962732,2969.3,2968.5,1.0181377]
[1768958249684,9.35962732,2969.3,2968.4,1.111]
[1768958250355,8.81762732,2969.1,2968.4,1.111]
[1768958250557,6.73582108,2969.2,2968.4,10.19737698]
[1768958250558,3.36791054,2969.2,2968.4,10.19737698]
[1768958250758,3.9098367,2969.3,2968.6,9.08637698]
[1768958251268,12.72746402,2969.3,2968.6,9.08637698]
[1768958251586,12.72746402,2969.3,2968.6,9.64137698]
[1768958251758,8.81762732,2969.2,2968.6,0.555]
[1768958251971,7.2776734,2969.3,2968.4,10.19737698]
[1768958251972,8.81762732,2969.0,2968.4,1.111]
[1768958252178,9.13089331,2968.9,2968.4,1.111]
[1768958252496,12.49918876,2968.9,2968.4,1.111]
[1768958254091,8.66497268,2968.8,2968.4,1.666]
[1768958255013,8.7401782,2968.7,2968.4,1e-08]
[1768958255207,9.99770501,2968.7,2968.4,1e-08]
[1768958255731,9.99770501,2968.7,2968.4,0.00100001]
[1768958256511,9.99770501,2968.7,2968.4,0.55600001]
[1768958257088,13.36626894,2968.7,2968.4,0.55600001]
[1768958258199,9.6701004,2968.6,2967.8,10.19637698]
[1768958258518,0.543,2968.5,2967.8,10.19637698]
[1768958258888,0.543,2968.5,2967.8,10.75137698]
[1768958261606,0.543,2968.5,2967.8,11.30637698]
[1768958261810,3.91173331,2968.5,2967.8,11.30637698]
[1768958261996,3.91173331,2968.5,2967.9,9.08637698]
[1768958263030,0.002,2968.8,2967.9,9.08637698]
[1768958263242,0.543,2968.7,2968.1,9.08637698]
[1768958263833,0.002,2968.8,2968.1,9.08637698]
[1768958264005,0.002,2968.8,2968.3,9.08637698]
[1768958264813,0.545,2969.0,2968.3,9.08637698]
[1768958265307,0.002,2969.0,2968.3,9.08637698]
[1768958266619,0.002,2969.0,2968.3,9.64137698]
[1768958269058,0.002,2969.0,2968.3,10.19637698]
[1768958269236,0.002,2969.0,2968.5,9.79043342]
[1768958269437,0.002,2968.8,2968.5,9.79043342]
[1768958270050,0.002,2968.8,2968.4,1.17186304]
[1768958270255,6.96733193,2968.8,2968.3,1.11]
[1768958270428,7.71636512,2968.7,2968.3,1.11]
[1768958270639,7.71636512,2968.7,2968.1,0.555]
[1768958270970,5.85533193,2968.6,2968.1,0.555]
[1768958271132,6.4372853,2968.5,2968.1,0.555]
[1768958271330,6.4372853,2968.5,2967.8,2.22]
[1768958271536,12.02751395,2968.4,2967.8,2.22]
[1768958271951,5.8942853,2968.3,2967.8,2.22]
[1768958272265,6.73809042,2968.2,2967.7,1.11]
[1768958272456,0.543,2968.1,2967.7,1.11]
[1768958272859,4.70092465,2968.5,2967.7,10.90043342]
[1768958272860,1.33215471,2968.5,2967.7,10.90043342]
[1768958273035,0.543,2968.4,2967.9,9.79043342]
[1768958273957,0.543,2968.4,2967.9,10.34543342]
[1768958274556,3.91183621,2968.4,2967.9,0.555]
[1768958274760,6.00848142,2968.3,2967.9,0.555]
[1768958276566,3.36904521,2968.2,2967.9,1.11]
[1768958277288,4.69798149,2968.2,2967.9,1.11]
[1768958278968,6.16382503,2968.8,2967.9,10.90043342]
[1768958279154,0.543,2968.7,2967.9,11.45543342]
[1768958279476,6.7426555,2968.7,2967.9,11.45543342]
[1768958279784,6.1996555,2968.6,2967.9,11.45543342]
[1768958280087,0.002,2968.8,2968.0,9.79043342]
[1768958280088,0.545,2968.8,2968.0,9.79043342]
[1768958280562,3.91336863,2968.8,2968.0,9.79043342]
[1768958280764,0.545,2968.8,2968.0,9.79043342]
[1768958280965,13.51881103,2968.8,2968.0,9.79043342]
[1768958281155,13.51881103,2968.8,2968.1,0.001]
[1768958281355,0.002,2968.5,2968.1,0.001]
[1768958281556,0.002,2968.5,2968.1,0.556]
[1768958282453,0.543,2968.4,2968.1,0.556]
[1768958283860,0.543,2968.4,2968.1,1.111]
[1768958284182,3.37075382,2968.5,2968.1,1.111]
[1768958284383,3.37075382,2968.5,2968.1,10.90143342]
[1768958284384,0.543,2968.4,2968.1,10.90143342]
[1768958284585,0.002,2968.7,2968.3,9.79043342]
[1768958284586,0.543,2968.6,2968.3,9.79043342]
[1768958286298,0.002,2968.7,2968.3,10.34543342]
[1768958286587,0.545,2968.7,2968.3,10.34543342]
[1768958286990,3.91348741,2968.7,2968.3,10.34543342]
[1768958288692,3.91348741,2968.7,2968.3,10.90043342]
[1768958289572,6.67665155,2968.6,2968.3,1e-08]
[1768958290066,3.36870473,2968.5,2968.3,1e-08]
[1768958292064,3.36870473,2968.5,2968.3,0.55500001]
[1768958292264,10.04529901,2968.6,2968.3,0.45419167]
[1768958292465,0.543,2968.5,2968.3,10.24462509]
[1768958292682,1.46891993,2968.6,2968.1,1.111]
[1768958292683,13.51271735,2968.6,2968.1,1.111]
[1768958293708,10.14408665,2968.6,2968.1,1.651]
[1768958294165,13.51271735,2968.6,2968.1,1.651]
[1768958294367,10.14408665,2968.6,2968.5,0.001]
[1768958294566,14.93721304,2968.6,2968.1,2.206]
[1768958295401,11.56858234,2968.6,2968.1,2.206]
[1768958295602,14.93721304,2968.6,2968.1,2.206]
[1768958296107,14.93721304,2968.6,2967.7,1.11]
[1768958296108,7.44436899,2968.5,2967.7,1e-08]
[1768958296309,4.92943082,2968.4,2967.7,10.09534653]
[1768958296471,6.73763642,2968.4,2967.7,10.09534653]
[1768958297005,3.36881821,2968.4,2967.7,10.65034653]
[1768958297200,3.36881821,2968.4,2967.9,10.09534652]
[1768958299108,6.73763642,2968.4,2967.9,10.09534652]
[1768958299272,6.73763642,2968.4,2967.9,10.65034652]
[1768958299480,6.73763642,2968.4,2967.9,0.555]
[1768958299683,6.73763642,2968.4,2967.8,0.54]
[1768958299684,7.02099929,2968.3,2967.8,0.54]
[1768958300680,7.02099929,2968.3,2967.7,0.55500001]
[1768958300681,3.36904521,2968.2,2967.7,0.55500001]
[1768958301781,3.36904521,2968.2,2967.7,1.11000001]
[1768958303313,7.13522727,2968.1,2967.7,1.11000001]
[1768958304097,3.36904521,2968.2,2967.7,1.11000001]
[1768958304309,1.39009595,2968.1,2967.7,1.66500001]
[1768958305120,1.39009595,2968.1,2967.7,11.76034653]
[1768958306131,1.39009595,2968.1,2967.9,0.001]
[1768958306431,0.002,2968.0,2967.9,0.001]
[1768958306727,0.002,2968.0,2967.9,0.556]
[1768958307029,0.002,2968.0,2967.9,10.65134652]
[1768958307633,0.002,2968.0,2967.7,1.66500001]
[1768958307800,0.33930506,2968.0,2967.7,1.66500001]
[1768958308626,0.002,2968.0,2967.7,1.66500001]
[1768958309125,0.002,2968.0,2967.7,2.22000001]
[1768958309430,10.40147225,2968.0,2967.7,2.22000001]
[1768958311933,10.40147225,2968.0,2967.7,2.77500001]
[1768958314304,10.39947225,2967.9,2967.6,0.555]
[1768958314518,11.43961947,2967.9,2967.6,0.555]
[1768958316153,10.39947225,2967.9,2967.6,0.555]
[1768958316635,10.39947225,2967.9,2967.6,1.11]
[1768958317341,10.39947225,2967.8,2967.6,1.11]
[1768958318647,13.76898734,2967.8,2967.6,1.11]
[1768958318846,13.76898734,2967.8,2967.5,1.666]
[1768958318847,10.39947225,2967.8,2967.5,1.666]
[1768958319151,10.39947225,2967.8,2967.4,0.54]
[1768958319451,0.002,2967.7,2967.4,0.54]
[1768958321466,0.002,2967.7,2967.4,11.19034652]
[1768958323036,0.002,2967.7,2967.4,10.65034652]
[1768958323374,0.002,2967.7,2967.4,11.19034652]
[1768958323930,0.002,2967.7,2967.4,11.74534652]
[1768958324145,0.002,2967.7,2967.4,13.08638117]
[1768958324344,0.002,2967.7,2967.4,11.74534652]
[1768958324957,0.002,2967.7,2967.5,0.54]
[1768958325357,0.002,2967.7,2966.4,1.665]
[1768958325358,10.84979803,2967.5,2966.4,1.665]
[1768958325533,6.14033487,2966.8,2966.4,12.30680086]
[1768958325737,6.14033487,2966.8,2966.4,12.84680086]
[1768958326137,16.9901329,2966.8,2966.4,7.25995684]
[1768958326339,16.9901329,2966.8,2966.4,0.555]
[1768958326668,10.84979803,2966.7,2966.5,0.54]
[1768958327044,10.84979803,2966.7,2966.4,0.555]
[1768958327260,10.84979803,2966.7,2966.5,0.54]
[1768958327574,10.84979803,2966.9,2966.5,0.54]
[1768958328672,10.84979803,2966.9,2966.5,1.095]
[1768958329588,10.84979803,2966.9,2966.5,0.555]
[1768958329786,10.84979803,2966.8,2966.5,0.555]
[1768958331166,10.84979803,2966.8,2966.5,1.11]
[1768958332181,10.84979803,2966.8,2966.7,0.001]
[1768958332505,10.84979803,2966.8,2966.5,1.11]
[1768958333568,10.84979803,2966.8,2966.5,1.665]
[1768958334805,10.84979803,2967.0,2966.5,12.30680086]
[1768958334982,14.2196918,2967.5,2966.7,10.64180086]
[1768958335174,14.2196918,2967.5,2966.9,10.64180086]
[1768958335375,17.58958557,2967.5,2966.9,10.64180086]
[1768958335897,10.84979803,2967.4,2966.9,10.64180086]
[1768958336092,10.84979803,2967.4,2967.0,0.54]
[1768958336400,12.60875659,2967.4,2967.0,0.43928427]
[1768958336907,12.60875659,2967.4,2966.9,1e-08]
[1768958337112,10.84979803,2967.1,2966.5,1.665]
[1768958337275,10.84979803,2967.1,2966.4,0.555]
[1768958337478,10.84979803,2966.7,2966.4,1e-08]
[1768958337802,0.543,2967.1,2966.4,10.64180087]
[1768958337803,11.39279803,2967.1,2966.4,10.64180087]
[1768958338001,3.91334762,2967.1,2966.4,10.64180087]
[1768958338208,18.13349327,2967.1,2966.4,10.64180087]
[1768958338421,10.84979803,2967.0,2966.4,11.19680087]
[1768958339024,10.84979803,2967.0,2966.4,1.09600001]
[1768958339227,12.66314736,2966.9,2966.4,1.09600001]
[1768958339378,3.37063502,2966.8,2966.4,1.09600001]
[1768958340030,14.22043305,2966.8,2966.4,0.55500001]